[Event "Turkish Cup 2022"]
[Site "Sakarya"]
[Date "2022.03.26"]
[Round "3.22"]
[White "Erke, Mustafa Yigit"]
[Black "Koc, Ilkay"]
[Result "0-1"]
[ECO "B01"]
[WhiteElo "1517"]
[BlackElo "1995"]
[Annotator "NA"]
[PlyCount "56"]
[EventDate "2022.03.25"]
[EventType "swiss"]
[EventCountry "TUR"]
[SourceTitle "playchess.com"]
[Source "ChessBase"]
[SourceQuality "1"]
[TimeControl "5400+30"]

1. e4 {[%emt 0:01:00]} d5 {[%emt 0:01:00]} 2. exd5 {[%emt 0:00:30]} Nf6 {[%emt 0:00:30]} 3. d4 {[%emt 0:00:30]} Nxd5 {[%emt 0:00:30]} 4. c4 {[%emt 0:00:30]} Nb4 {[%emt 0:05:30]} 5. Qa4+ {[%emt 0:11:30]} N8c6 {[%emt 0:00:30]} 6. d5 {[%emt 0:01:30]} Bf5 {[%emt 0:00:30]} 7. Na3 {[%emt 0:00:00]} b5 {[%emt 0:00:30]} 8. Nxb5 {[%emt 0:05:00]} Nc2+ {[%emt 0:04:30]} 9. Kd1 {[%emt 0:00:30]} a6 {[%emt 0:04:30]} 10. Na3 {[%emt 0:08:30]} Nxa1 {[%emt 0:01:30]} 11. Bd3 {[%emt 0:00:30]} Bd7 {[%emt 0:00:30]} 12. Nf3 {[%emt 0:22:30]} Ne5 {[%emt 0:01:30]} 13. Bc2 {[%emt 0:00:00]} Nxf3 {[%emt 0:02:30]} 14. gxf3 {[%emt 0:03:00]} e6 {[%emt 0:00:30]} 15. Qa5 {[%emt 0:01:30]} Bxa3 {[%emt 0:00:00]} 16. Qc3 {[%emt 0:09:30]} Be7 {[%emt 0:07:00]} 17. Be4 {[%emt 0:03:30]} O-O {[%emt 0:00:30]} 18. Rg1 {[%emt 0:09:30]} Bf6 {[%emt 0:00:30]} 19. Qd3 {[%emt 0:00:30]} g6 {[%emt 0:01:30]} 20. Bh6 {[%emt 0:08:25]} Bg7 {[%emt 0:00:00]} 21. Bg5 {[%emt 0:01:18]} Bf6 {[%emt 0:07:00]} 22. Bh6 {[%emt 0:00:05]} Qe7 {[%emt 0:01:30]} 23. Qb1 {[%emt 0:04:19]} Rab8 {[%emt 0:01:30]} 24. Bc1 {[%emt 0:02:36]} exd5 {[%emt 0:00:00]} 25. Bxd5 {[%emt 0:00:00]} Ba4+ {[%emt 0:00:00]} 26. b3 {[%emt 0:00:18]} Nxb3 {[%emt 0:00:30]} 27. Rxg6+ {[%emt 0:01:12]} hxg6 {[%emt 0:00:30]} 28. Qxg6+ {[%emt 0:00:20]} Bg7 {[%emt 0:00:00]} 0-1

[Event "Turkish Cup 2022"]
[Site "Sakarya"]
[Date "2022.03.26"]
[Round "3.24"]
[White "Maruflu, Enes Yusuf"]
[Black "Ozel, Baran Kemal"]
[Result "1-0"]
[ECO "C68"]
[WhiteElo "1945"]
[BlackElo "1401"]
[Annotator "NA"]
[PlyCount "83"]
[EventDate "2022.03.25"]
[EventType "swiss"]
[EventCountry "TUR"]
[SourceTitle "playchess.com"]
[Source "ChessBase"]
[SourceQuality "1"]
[TimeControl "5400+30"]

1. e4 {[%emt 0:01:00]} e5 {[%emt 0:01:00]} 2. Nf3 {[%emt 0:00:30]} Nc6 {[%emt 0:00:30]} 3. Bb5 {[%emt 0:00:30]} a6 {[%emt 0:00:00]} 4. Bxc6 {[%emt 0:00:30]} dxc6 {[%emt 0:00:00]} 5. d4 {[%emt 0:00:30]} exd4 {[%emt 0:00:30]} 6. Qxd4 {[%emt 0:00:30]} Qxd4 {[%emt 0:03:30]} 7. Nxd4 {[%emt 0:00:00]} Bd6 {[%emt 0:01:30]} 8. Nc3 {[%emt 0:03:00]} Ne7 {[%emt 0:03:30]} 9. Be3 {[%emt 0:01:30]} Bd7 {[%emt 0:02:30]} 10. O-O-O {[%emt 0:00:30]} O-O-O {[%emt 0:01:30]} 11. Nb3 {[%emt 0:02:30]} Rhe8 {[%emt 0:06:30]} 12. a3 {[%emt 0:07:30]} Ng6 {[%emt 0:06:30]} 13. Nc5 {[%emt 0:05:30]} f6 {[%emt 0:08:30]} 14. Nxd7 {[%emt 0:03:30]} Rxd7 {[%emt 0:00:30]} 15. f3 {[%emt 0:01:30]} Red8 {[%emt 0:07:30]} 16. Ne2 {[%emt 0:03:30]} Ne5 {[%emt 0:07:30]} 17. Kb1 {[%emt 0:19:30]} Nc4 {[%emt 0:07:30]} 18. Bc1 {[%emt 0:02:30]} Be5 {[%emt 0:02:30]} 19. Rxd7 {[%emt 0:00:30]} Rxd7 {[%emt 0:00:30]} 20. b3 {[%emt 0:02:30]} Nb6 {[%emt 0:01:30]} 21. f4 {[%emt 0:01:30]} Bd6 {[%emt 0:00:30]} 22. Rd1 {[%emt 0:00:30]} Re7 {[%emt 0:07:30]} 23. Ng3 {[%emt 0:00:00]} g6 {[%emt 0:03:30]} 24. Rf1 {[%emt 0:00:00]} Nd7 {[%emt 0:05:30]} 25. Bb2 {[%emt 0:02:30]} a5 {[%emt 0:01:30]} 26. a4 {[%emt 0:01:30]} b5 {[%emt 0:00:30]} 27. Bc3 {[%emt 0:00:30]} Bb4 {[%emt 0:01:30]} 28. Bd4 {[%emt 0:07:30]} Bc5 {[%emt 0:00:30]} 29. Bb2 {[%emt 0:01:30]} Bd6 {[%emt 0:00:50]} 30. Kc1 {[%emt 0:02:30]} g5 {[%emt 0:05:38]} 31. e5 {[%emt 0:03:30]} fxe5 {[%emt 0:01:05]} 32. fxg5 {[%emt 0:00:30]} e4 {[%emt 0:01:05]} 33. Nf5 {[%emt 0:00:00]} Re8 {[%emt 0:01:29]} 34. h4 {[%emt 0:03:00]} Nc5 {[%emt 0:03:49]} 35. axb5 {[%emt 0:01:30]} cxb5 {[%emt 0:00:07]} 36. h5 {[%emt 0:00:30]} Rg8 {[%emt 0:01:08]} 37. g6 {[%emt 0:01:30]} hxg6 {[%emt 0:04:05]} 38. Nxd6+ {[%emt 0:00:00]} cxd6 {[%emt 0:00:11]} 39. h6 {[%emt 0:00:00]} Kd7 {[%emt 0:01:17]} 40. h7 {[%emt 0:00:30]} Re8 {[%emt 0:00:49]} 41. h8=Q {[%emt 0:00:30]} Rxh8 {[%emt 0:00:30]} 42. Bxh8 {[%emt 0:00:00]} 1-0

[Event "Turkish Cup 2022"]
[Site "Sakarya"]
[Date "2022.03.26"]
[Round "3.26"]
[White "Kilic, Efe Mert"]
[Black "Sakmak, Kutay"]
[Result "1/2-1/2"]
[ECO "E60"]
[WhiteElo "2220"]
[BlackElo "1718"]
[Annotator "ChessBase"]
[PlyCount "131"]
[EventDate "2022.03.25"]
[EventType "swiss"]
[EventCountry "TUR"]
[SourceTitle "playchess.com"]
[Source "ChessBase"]
[SourceQuality "1"]
[TimeControl "5400+30"]

1. Nf3 {[%emt 0:01:00]} Nf6 {[%emt 0:01:00]} 2. b3 {[%emt 0:00:30]} g6 {[%emt 0:00:30]} 3. Bb2 {[%emt 0:00:30]} Bg7 {[%emt 0:00:30]} 4. e3 {[%emt 0:00:00]} O-O {[%emt 0:00:30]} 5. d4 {[%emt 0:00:00]} d6 {[%emt 0:00:30]} 6. Be2 {[%emt 0:00:30]} Nbd7 {[%emt 0:01:30]} 7. c4 {[%emt 0:01:30]} Re8 {[%emt 0:03:30]} 8. O-O {[%emt 0:00:30]} b6 {[%emt 0:01:30]} 9. Nc3 {[%emt 0:04:30]} Bb7 {[%emt 0:01:30]} 10. Qc2 {[%emt 0:01:30]} e5 {[%emt 0:02:30]} 11. dxe5 {[%emt 0:00:30]} Nxe5 {[%emt 0:01:30]} 12. Rfd1 {[%emt 0:24:30]} Nxf3+ {[%emt 0:01:30]} 13. Bxf3 {[%emt 0:00:00]} Bxf3 {[%emt 0:01:30]} 14. gxf3 {[%emt 0:00:00]} Nd7 {[%emt 0:00:30]} 15. Ne2 {[%emt 0:12:30]} Bxb2 {[%emt 0:23:30]} 16. Qxb2 {[%emt 0:00:30]} Ne5 {[%emt 0:00:30]} 17. Kg2 {[%emt 0:00:30]} h5 {[%emt 0:00:30]} 18. f4 {[%emt 0:05:30]} Ng4 {[%emt 0:05:30]} 19. h3 {[%emt 0:03:30]} Nxe3+ {[%emt 0:08:30]} 20. fxe3 {[%emt 0:00:30]} Rxe3 {[%emt 0:00:00]} 21. Ng1 {[%emt 0:06:30]} Qe7 {[%emt 0:08:00]} 22. Qc2 {[%emt 0:02:30]} Re8 {[%emt 0:01:30]} 23. Rf1 {[%emt 0:00:30]} Qf6 {[%emt 0:05:30]} 24. Rad1 {[%emt 0:13:30]} h4 {[%emt 0:13:24]} 25. Rd3 {[%emt 0:05:26]} R3e4 {[%emt 0:00:43]} 26. Qf2 {[%emt 0:02:08]} a5 {[%emt 0:03:45]} 27. Kh1 {[%emt 0:03:46]} a4 {[%emt 0:01:24]} 28. Rf3 {[%emt 0:02:47]} a3 {[%emt 0:01:01]} 29. Qg2 {[%emt 0:00:37]} Kg7 {[%emt 0:05:16]} 30. Qg5 {[%emt 0:01:08]} R8e7 {[%emt 0:00:00]} 31. Qxf6+ {[%emt 0:01:29]} Kxf6 {[%emt 0:00:23]} 32. R3f2 {[%emt 0:00:30]} Re3 {[%emt 0:00:59]} 33. Kh2 {[%emt 0:03:03]} R7e4 {[%emt 0:01:22]} 34. Rg2 {[%emt 0:00:52]} Rd4 {[%emt 0:01:37]} 35. Rff2 {[%emt 0:01:04]} Red3 {[%emt 0:03:02]} 36. Rg4 {[%emt 0:01:16]} Rd2 {[%emt 0:00:23]} 37. Rgg2 {[%emt 0:01:32]} Rxf2 {[%emt 0:01:59]} 38. Rxf2 {[%emt 0:00:02]} Rd1 {[%emt 0:00:00]} 39. Nf3 {[%emt 0:00:57]} Kf5 {[%emt 0:00:19]} 40. Rd2 {[%emt 0:01:18]} Rb1 {[%emt 0:00:45]} 41. Kg2 {[%emt 0:00:58]} Kxf4 {[%emt 0:01:14]} 42. Kf2 {[%emt 0:00:07]} Rb2 {[%emt 0:00:25]} 43. Ke2 {[%emt 0:00:42]} Kg3 {[%emt 0:00:37]} 44. Ng5 {[%emt 0:00:39]} f6 {[%emt 0:00:40]} 45. Ne4+ {[%emt 0:00:41]} Kxh3 {[%emt 0:00:06]} 46. Kf3 {[%emt 0:00:00]} Rxd2 {[%emt 0:01:17]} 47. Nxd2 {[%emt 0:00:25]} g5 {[%emt 0:00:30]} 48. Kf2 {[%emt 0:00:30]} g4 {[%emt 0:00:30]} 49. Kg1 {[%emt 0:00:30]} f5 {[%emt 0:00:30]} 50. Nb1 {[%emt 0:00:30]} f4 {[%emt 0:00:30]} 51. Nxa3 {[%emt 0:00:30]} f3 {[%emt 0:00:30]} 52. Nc2 {[%emt 0:00:00]} Kg3 {[%emt 0:00:00]} 53. Ne3 {[%emt 0:00:28]} h3 {[%emt 0:01:11]} 54. Nf1+ {[%emt 0:00:48]} Kf4 {[%emt 0:00:02]} 55. Kf2 {[%emt 0:01:16]} h2 {[%emt 0:00:23]} 56. Ng3 {[%emt 0:00:02]} c5 {[%emt 0:00:09]} 57. Nh1 {[%emt 0:00:24]} Ke4 {[%emt 0:00:49]} 58. Kg3 {[%emt 0:00:19]} Kd3 {[%emt 0:00:34]} 59. Kxh2 {[%emt 0:00:36]} Kc2 {[%emt 0:00:06]} 60. Nf2 {[%emt 0:00:54]} Kb2 {[%emt 0:00:15]} 61. Nxg4 {[%emt 0:00:19]} Kxa2 {[%emt 0:00:06]} 62. Kg3 {[%emt 0:00:51]} Kxb3 {[%emt 0:00:30]} 63. Ne3 {[%emt 0:00:00]} Kb4 {[%emt 0:01:01]} 64. Kxf3 {[%emt 0:00:00]} b5 {[%emt 0:00:19]} 65. cxb5 {[%emt 0:00:22]} Kxb5 {[%emt 0:00:30]} 66. Ke4 {[%emt 0:00:00]} 1/2-1/2

[Event "Turkish Cup 2022"]
[Site "Sakarya"]
[Date "2022.03.26"]
[Round "3.27"]
[White "Sezis, Doruk"]
[Black "Ozdemir, Serhan Berat"]
[Result "1/2-1/2"]
[ECO "E90"]
[WhiteElo "1566"]
[BlackElo "2185"]
[Annotator "NA"]
[PlyCount "137"]
[EventDate "2022.03.25"]
[EventType "swiss"]
[EventCountry "TUR"]
[SourceTitle "playchess.com"]
[Source "ChessBase"]
[SourceQuality "1"]
[TimeControl "5400+30"]

1. c4 {[%emt 0:01:00]} Nf6 {[%emt 0:07:00]} 2. Nc3 {[%emt 0:00:30]} g6 {[%emt 0:00:30]} 3. e4 {[%emt 0:00:30]} d6 {[%emt 0:00:30]} 4. d4 {[%emt 0:00:30]} Bg7 {[%emt 0:00:30]} 5. h3 {[%emt 0:00:00]} O-O {[%emt 0:00:00]} 6. Be3 {[%emt 0:00:00]} c5 {[%emt 0:00:00]} 7. d5 {[%emt 0:00:30]} e6 {[%emt 0:00:00]} 8. Bd3 {[%emt 0:00:00]} exd5 {[%emt 0:00:00]} 9. exd5 {[%emt 0:00:00]} Re8 {[%emt 0:00:30]} 10. Nf3 {[%emt 0:00:00]} a6 {[%emt 0:29:30]} 11. O-O {[%emt 0:01:00]} Rxe3 {[%emt 0:11:30]} 12. fxe3 {[%emt 0:00:30]} Qe7 {[%emt 0:00:00]} 13. Qd2 $16 {[%emt 0:01:30]} Nbd7 {[%emt 0:00:00]} 14. Rae1 {[%emt 0:00:30]} Rb8 {[%emt 0:07:30]} 15. g4 {[%emt 0:10:30]} h6 {[%emt 0:04:30]} 16. Kh1 {[%emt 0:08:30]} Nh7 {[%emt 0:01:30]} 17. Qf2 {[%emt 0:16:30]} Ne5 {[%emt 0:02:30]} 18. Nxe5 {[%emt 0:02:30]} Bxe5 {[%emt 0:00:30]} 19. Rb1 {[%emt 0:26:30]} Bd7 {[%emt 0:01:30]} 20. Ne2 {[%emt 0:00:30]} b5 {[%emt 0:04:30]} 21. cxb5 {[%emt 0:00:30]} axb5 {[%emt 0:00:00]} 22. Ng1 {[%emt 0:00:30]} Kg7 {[%emt 0:02:00]} 23. Nf3 {[%emt 0:00:30]} Bf6 {[%emt 0:00:00]} 24. b3 {[%emt 0:01:30]} Re8 {[%emt 0:01:00]} 25. e4 {[%emt 0:02:30]} b4 {[%emt 0:00:00]} 26. Rbe1 {[%emt 0:01:30]} Bc3 {[%emt 0:01:00]} 27. Re2 {[%emt 0:00:30]} Ng5 {[%emt 0:01:30]} 28. Nxg5 {[%emt 0:00:30]} hxg5 {[%emt 0:00:30]} 29. Kg2 {[%emt 0:00:30]} Be5 {[%emt 0:00:00]} 30. Qf3 {[%emt 0:04:30]} Rh8 {[%emt 0:00:00]} 31. Ref2 {[%emt 0:01:30]} f6 {[%emt 0:00:30]} 32. Rh1 {[%emt 0:02:50]} Rh4 {[%emt 0:00:00]} 33. Qe2 {[%emt 0:00:50]} Qe8 {[%emt 0:00:00]} 34. Qc2 {[%emt 0:02:39]} Bd4 {[%emt 0:02:30]} 35. Rff1 {[%emt 0:00:52]} Qe5 {[%emt 0:00:30]} 36. Be2 {[%emt 0:00:43]} Rh8 {[%emt 0:01:30]} 37. Bd3 {[%emt 0:05:54]} Ra8 {[%emt 0:00:30]} 38. Qe2 {[%emt 0:00:04]} Rh8 {[%emt 0:01:30]} 39. Qc2 {[%emt 0:00:05]} Qe8 {[%emt 0:00:30]} 40. Be2 {[%emt 0:01:28]} Qc8 {[%emt 0:00:30]} 41. Rd1 {[%emt 0:03:01]} Be5 {[%emt 0:00:30]} 42. Qd3 {[%emt 0:00:24]} Rh4 {[%emt 0:01:30]} 43. Qf3 {[%emt 0:00:28]} Qa8 {[%emt 0:00:30]} 44. Rd2 {[%emt 0:00:10]} Bf4 {[%emt 0:01:30]} 45. Rb2 {[%emt 0:00:38]} Qe8 {[%emt 0:01:30]} 46. Qd3 {[%emt 0:00:47]} Qe5 {[%emt 0:01:30]} 47. Rc2 {[%emt 0:00:05]} Rh8 {[%emt 0:01:39]} 48. Bf3 {[%emt 0:02:23]} Bg3 {[%emt 0:00:51]} 49. Bd1 {[%emt 0:01:38]} Bf4 {[%emt 0:00:30]} 50. Bf3 {[%emt 0:00:00]} Re8 {[%emt 0:00:23]} 51. Re2 {[%emt 0:00:03]} Bg3 {[%emt 0:00:25]} 52. Rd2 {[%emt 0:02:15]} Bf4 {[%emt 0:11:57]} 53. Rc2 {[%emt 0:00:52]} Qe7 {[%emt 0:00:08]} 54. a3 {[%emt 0:01:59]} bxa3 {[%emt 0:00:30]} 55. Qa6 {[%emt 0:00:00]} Rb8 {[%emt 0:00:56]} 56. Qxa3 {[%emt 0:00:17]} Rb4 {[%emt 0:00:30]} 57. Rc4 {[%emt 0:00:06]} Rb7 {[%emt 0:00:59]} 58. h4 {[%emt 0:01:17]} gxh4 {[%emt 0:01:12]} 59. Rxh4 {[%emt 0:00:30]} Bg5 {[%emt 0:00:00]} 60. Rh1 {[%emt 0:00:03]} Bb5 {[%emt 0:00:24]} 61. Qa8 {[%emt 0:01:11]} Bh6 {[%emt 0:00:01]} 62. Rc2 {[%emt 0:01:03]} Bd3 {[%emt 0:02:34]} 63. Rd2 {[%emt 0:00:24]} Rxb3 {[%emt 0:00:54]} 64. Ra1 {[%emt 0:00:37]} Bxd2 {[%emt 0:03:48]} 65. Ra7 {[%emt 0:00:30]} Qxa7 {[%emt 0:00:30]} 66. Qxa7+ {[%emt 0:00:00]} Kg8 {[%emt 0:00:00]} 67. Qa8+ {[%emt 0:00:25]} Kg7 {[%emt 0:00:22]} 68. Qa7+ {[%emt 0:00:30]} Kg8 {[%emt 0:00:00]} 69. Qa8+ {[%emt 0:00:00]} 1/2-1/2

[Event "Turkish Cup 2022"]
[Site "Sakarya"]
[Date "2022.03.26"]
[Round "3.28"]
[White "Tahaoglu, Erkin"]
[Black "Guven, Oguz Kagan"]
[Result "0-1"]
[ECO "B35"]
[WhiteElo "1694"]
[BlackElo "2157"]
[Annotator "ChessBase"]
[PlyCount "96"]
[EventDate "2022.03.25"]
[EventType "swiss"]
[EventCountry "TUR"]
[SourceTitle "playchess.com"]
[Source "ChessBase"]
[SourceQuality "1"]
[TimeControl "5400+30"]

1. e4 {[%emt 0:01:00]} c5 {[%emt 0:06:00]} 2. Nf3 {[%emt 0:00:30]} g6 {[%emt 0:00:30]} 3. d4 {[%emt 0:00:30]} cxd4 {[%emt 0:00:30]} 4. Nxd4 {[%emt 0:00:00]} Nc6 {[%emt 0:00:30]} 5. Nc3 {[%emt 0:00:00]} Bg7 {[%emt 0:00:00]} 6. Be3 {[%emt 0:00:00]} Nf6 {[%emt 0:00:00]} 7. Bc4 {[%emt 0:00:00]} Qa5 {[%emt 0:00:30]} 8. O-O {[%emt 0:00:30]} O-O {[%emt 0:00:00]} 9. Qe2 {[%emt 0:00:30]} Nxe4 {[%emt 0:07:00]} 10. Nxc6 {[%emt 0:03:30]} bxc6 {[%emt 0:00:00]} 11. Nxe4 {[%emt 0:04:30]} d5 {[%emt 0:00:00]} 12. Nd2 {[%emt 0:04:30]} dxc4 {[%emt 0:00:30]} 13. Nxc4 {[%emt 0:07:30]} Qa6 {[%emt 0:05:30]} 14. c3 {[%emt 0:06:30]} Be6 {[%emt 0:00:30]} 15. b3 {[%emt 0:00:30]} Bxc3 {[%emt 0:00:30]} 16. Rac1 {[%emt 0:01:30]} Bf6 {[%emt 0:00:00]} 17. Rfe1 {[%emt 0:01:30]} Rfe8 {[%emt 0:10:00]} 18. Bf4 {[%emt 0:06:30]} Bd5 {[%emt 0:10:30]} 19. Ne5 {[%emt 0:05:30]} Qxe2 {[%emt 0:00:30]} 20. Rxe2 {[%emt 0:00:00]} Bxe5 {[%emt 0:01:30]} 21. Bxe5 {[%emt 0:00:00]} f6 {[%emt 0:00:30]} 22. Bc3 {[%emt 0:04:30]} a5 {[%emt 0:00:30]} 23. Bd4 {[%emt 0:04:30]} e5 {[%emt 0:02:30]} 24. Bc5 {[%emt 0:00:30]} Kf7 {[%emt 0:00:30]} 25. f3 {[%emt 0:00:30]} g5 {[%emt 0:03:30]} 26. Rc3 {[%emt 0:04:30]} h5 {[%emt 0:00:30]} 27. h3 {[%emt 0:01:30]} Rg8 {[%emt 0:06:30]} 28. a3 {[%emt 0:07:30]} g4 {[%emt 0:01:30]} 29. fxg4 {[%emt 0:00:30]} hxg4 {[%emt 0:00:00]} 30. b4 {[%emt 0:02:30]} axb4 {[%emt 0:00:00]} 31. Bxb4 {[%emt 0:00:30]} Ke6 {[%emt 0:02:30]} 32. Rg3 {[%emt 0:03:30]} gxh3 {[%emt 0:01:30]} 33. Rxh3 {[%emt 0:01:30]} Rg4 {[%emt 0:00:30]} 34. g3 {[%emt 0:08:30]} Rc4 {[%emt 0:02:30]} 35. Re3 {[%emt 0:02:30]} c5 {[%emt 0:02:30]} 36. Bd2 {[%emt 0:01:43]} Rb8 {[%emt 0:02:30]} 37. Rh2 {[%emt 0:03:07]} Rb2 {[%emt 0:02:30]} 38. Be1 {[%emt 0:01:59]} Rb1 {[%emt 0:00:30]} 39. Rd2 {[%emt 0:00:39]} Rcc1 {[%emt 0:00:30]} 40. Kf2 {[%emt 0:00:26]} c4 {[%emt 0:01:30]} 41. a4 {[%emt 0:02:32]} c3 {[%emt 0:02:30]} 42. Rde2 {[%emt 0:04:29]} Bc4 {[%emt 0:00:30]} 43. Rxc3 {[%emt 0:00:22]} Rxc3 {[%emt 0:00:30]} 44. Bxc3 {[%emt 0:00:30]} Bxe2 {[%emt 0:00:30]} 45. Kxe2 {[%emt 0:00:00]} Kd5 {[%emt 0:01:30]} 46. a5 {[%emt 0:00:00]} Rb3 {[%emt 0:00:30]} 47. Be1 {[%emt 0:01:14]} Ke4 {[%emt 0:00:30]} 48. Bf2 {[%emt 0:01:14]} Rb2+ {[%emt 0:00:30]} 0-1

[Event "Turkish Cup 2022"]
[Site "Sakarya"]
[Date "2022.03.26"]
[Round "3.29"]
[White "Kul, Ozdemir Efe"]
[Black "Unsal, Gorkem"]
[Result "1-0"]
[ECO "A07"]
[WhiteElo "2042"]
[BlackElo "1672"]
[Annotator "ChessBase"]
[PlyCount "57"]
[EventDate "2022.03.25"]
[EventType "swiss"]
[EventCountry "TUR"]
[SourceTitle "playchess.com"]
[Source "ChessBase"]
[SourceQuality "1"]
[TimeControl "5400+30"]

1. Nf3 {[%emt 0:01:00]} Nf6 {[%emt 0:01:00]} 2. g3 {[%emt 0:00:30]} g6 {[%emt 0:00:30]} 3. Bg2 {[%emt 0:00:30]} Bg7 {[%emt 0:00:30]} 4. d3 {[%emt 0:00:30]} d5 {[%emt 0:02:30]} 5. O-O {[%emt 0:00:30]} O-O {[%emt 0:00:30]} 6. a3 {[%emt 0:00:30]} c6 {[%emt 0:01:30]} 7. Nbd2 {[%emt 0:01:30]} Bg4 {[%emt 0:05:30]} 8. h3 {[%emt 0:00:30]} Bxf3 {[%emt 0:00:30]} 9. Bxf3 {[%emt 0:00:30]} e5 {[%emt 0:00:30]} 10. e4 {[%emt 0:00:30]} d4 {[%emt 0:02:30]} 11. Bg2 {[%emt 0:03:30]} Nfd7 {[%emt 0:04:30]} 12. f4 {[%emt 0:01:30]} f6 {[%emt 0:12:30]} 13. Nf3 {[%emt 0:04:30]} Na6 {[%emt 0:01:30]} 14. h4 {[%emt 0:03:30]} Nc7 {[%emt 0:03:30]} 15. h5 {[%emt 0:00:30]} c5 {[%emt 0:10:30]} 16. hxg6 {[%emt 0:01:30]} hxg6 {[%emt 0:00:30]} 17. Nh4 {[%emt 0:00:30]} Re8 {[%emt 0:13:30]} 18. Nxg6 {[%emt 0:01:30]} Nf8 {[%emt 0:04:30]} 19. Nh4 {[%emt 0:01:30]} exf4 {[%emt 0:09:30]} 20. gxf4 {[%emt 0:00:30]} Qd7 {[%emt 0:01:30]} 21. Nf5 {[%emt 0:01:30]} Qf7 {[%emt 0:01:30]} 22. Rf3 {[%emt 0:01:30]} Ng6 {[%emt 0:03:01]} 23. Rg3 {[%emt 0:00:30]} Ne6 {[%emt 0:00:11]} 24. Qg4 {[%emt 0:00:30]} Nef8 {[%emt 0:00:56]} 25. Nxg7 {[%emt 0:00:30]} Qxg7 {[%emt 0:00:30]} 26. f5 {[%emt 0:01:30]} Re5 {[%emt 0:00:02]} 27. Bf4 {[%emt 0:00:00]} Re7 {[%emt 0:01:00]} 28. fxg6 {[%emt 0:04:00]} Ne6 {[%emt 0:00:04]} 29. Rf1 {[%emt 0:00:30]} 1-0

[Event "Turkish Cup 2022"]
[Site "Sakarya"]
[Date "2022.03.26"]
[Round "3.30"]
[White "Korkmaz, Necmettin"]
[Black "Ozates, Veysel"]
[Result "1-0"]
[ECO "B12"]
[WhiteElo "2076"]
[BlackElo "1645"]
[Annotator "ChessBase"]
[PlyCount "115"]
[EventDate "2022.03.25"]
[EventType "swiss"]
[EventCountry "TUR"]
[SourceTitle "playchess.com"]
[Source "ChessBase"]
[SourceQuality "1"]
[TimeControl "5400+30"]

1. e4 {[%emt 0:01:00]} c6 {[%emt 0:01:00]} 2. d4 {[%emt 0:01:30]} d5 {[%emt 0:00:30]} 3. e5 {[%emt 0:00:30]} Bf5 {[%emt 0:00:30]} 4. Nf3 {[%emt 0:00:30]} e6 {[%emt 0:00:30]} 5. Be2 {[%emt 0:00:30]} Nd7 {[%emt 0:00:00]} 6. O-O {[%emt 0:01:30]} c5 {[%emt 0:02:00]} 7. Be3 {[%emt 0:02:30]} Ne7 {[%emt 0:02:30]} 8. dxc5 {[%emt 0:12:30]} Nc6 {[%emt 0:01:30]} 9. Nd4 {[%emt 0:07:30]} Bg6 {[%emt 0:04:30]} 10. Nxc6 {[%emt 0:04:30]} bxc6 {[%emt 0:00:30]} 11. b4 {[%emt 0:01:30]} Nxe5 {[%emt 0:04:30]} 12. Bd4 {[%emt 0:01:30]} Nd7 {[%emt 0:01:30]} 13. f4 {[%emt 0:00:30]} Rb8 {[%emt 0:04:30]} 14. c3 {[%emt 0:03:30]} f6 {[%emt 0:01:30]} 15. Bh5 {[%emt 0:05:30]} Bxh5 {[%emt 0:07:30]} 16. Qxh5+ {[%emt 0:01:30]} g6 {[%emt 0:00:00]} 17. Qe2 {[%emt 0:01:30]} Kf7 {[%emt 0:00:00]} 18. Re1 {[%emt 0:00:30]} Qe7 {[%emt 0:01:30]} 19. Nd2 {[%emt 0:03:30]} Bh6 {[%emt 0:02:30]} 20. g3 {[%emt 0:01:30]} Rhc8 {[%emt 0:04:30]} 21. Qg4 {[%emt 0:05:30]} Bg7 {[%emt 0:03:30]} 22. Nf3 {[%emt 0:04:30]} Nf8 {[%emt 0:03:30]} 23. Qh3 {[%emt 0:02:30]} Re8 {[%emt 0:01:30]} 24. Re2 {[%emt 0:02:30]} Qd7 {[%emt 0:04:30]} 25. Rae1 {[%emt 0:01:30]} Re7 {[%emt 0:00:30]} 26. g4 {[%emt 0:01:30]} Rbe8 {[%emt 0:01:30]} 27. Qg3 {[%emt 0:03:30]} Qc7 {[%emt 0:03:30]} 28. g5 {[%emt 0:02:30]} f5 {[%emt 0:02:30]} 29. Ne5+ {[%emt 0:04:30]} Kg8 {[%emt 0:00:30]} 30. h4 {[%emt 0:00:30]} Nd7 {[%emt 0:00:30]} 31. h5 {[%emt 0:05:53]} Nxe5 {[%emt 0:01:30]} 32. Bxe5 {[%emt 0:00:34]} Bxe5 {[%emt 0:00:30]} 33. Rxe5 {[%emt 0:00:40]} Kg7 {[%emt 0:00:30]} 34. Qh4 {[%emt 0:00:40]} Kg8 {[%emt 0:08:30]} 35. hxg6 {[%emt 0:01:53]} hxg6 {[%emt 0:00:30]} 36. Qh6 {[%emt 0:00:11]} Rg7 {[%emt 0:04:30]} 37. R1e2 {[%emt 0:02:34]} Qf7 {[%emt 0:01:30]} 38. Qh3 {[%emt 0:06:00]} Qd7 {[%emt 0:04:30]} 39. Qe3 {[%emt 0:00:39]} Rge7 {[%emt 0:02:30]} 40. Qd4 {[%emt 0:01:19]} Rh7 {[%emt 0:01:30]} 41. Qe3 {[%emt 0:00:53]} Kf7 {[%emt 0:01:53]} 42. Qd4 {[%emt 0:01:38]} Reh8 {[%emt 0:03:25]} 43. Kf2 {[%emt 0:02:23]} Rh1 {[%emt 0:02:20]} 44. Ke3 {[%emt 0:00:56]} R8h3+ {[%emt 0:03:19]} 45. Kd2 {[%emt 0:00:15]} Ra1 {[%emt 0:01:48]} 46. R5e3 {[%emt 0:00:16]} Rxa2+ {[%emt 0:01:14]} 47. Kd3 {[%emt 0:00:08]} Rxe3+ {[%emt 0:00:29]} 48. Rxe3 {[%emt 0:00:12]} Kg8 {[%emt 0:02:26]} 49. Qf6 {[%emt 0:00:39]} d4 {[%emt 0:05:19]} 50. Qxg6+ {[%emt 0:00:26]} Kf8 {[%emt 0:00:09]} 51. Qf6+ {[%emt 0:00:52]} Kg8 {[%emt 0:00:36]} 52. Qxe6+ {[%emt 0:01:19]} Qxe6 {[%emt 0:00:59]} 53. Rxe6 {[%emt 0:00:09]} dxc3 {[%emt 0:00:07]} 54. Kxc3 {[%emt 0:00:36]} Rf2 {[%emt 0:00:31]} 55. Rxc6 {[%emt 0:00:39]} Rxf4 {[%emt 0:00:15]} 56. b5 {[%emt 0:01:09]} Rg4 {[%emt 0:00:36]} 57. b6 {[%emt 0:01:33]} axb6 {[%emt 0:00:38]} 58. cxb6 {[%emt 0:00:08]} 1-0